Workbook

Sheet Sheet1
A1: 附件1：
A2: 封丘县2024年公开招聘乡镇事业人员面试成绩、总成绩及进入体检人员名单
A3: 序号 | B3: 姓名 | C3: 岗位代码 | D3: 笔试成绩 | E3: 面试成绩 | F3: 总成绩 | G3: 备注
A4: 1 | B4: 职宏霖 | C4: 0101 | D4: 77.5 | E4: =VLOOKUP(B:B,[1]登记表打印!$B:$F,5,0) -> 80.55 | F4: 79.03 | G4: *
A5: 2 | B5: 申姣姣 | C5: 0101 | D5: 73.7 | E5: =VLOOKUP(B:B,[1]登记表打印!$B:$F,5,0) -> 80.70 | F5: 77.20 | G5: *
A6: 3 | B6: 何彦海 | C6: 0101 | D6: 71.4 | E6: =VLOOKUP(B:B,[1]登记表打印!$B:$F,5,0) -> 82.96 | F6: 77.18 | G6: *
A7: 4 | B7: 常歆玥 | C7: 0101 | D7: 77.4 | E7: =VLOOKUP(B:B,[1]登记表打印!$B:$F,5,0) -> 76.95 | F7: 77.18 | G7: *
A8: 5 | B8: 林令辉 | C8: 0101 | D8: 69.3 | E8: =VLOOKUP(B:B,[1]登记表打印!$B:$F,5,0) -> 83.47 | F8: 76.39 | G8: *
A9: 6 | B9: 刘冉 | C9: 0101 | D9: 70.8 | E9: =VLOOKUP(B:B,[1]登记表打印!$B:$F,5,0) -> 81.55 | F9: 76.18 | G9: *
A10: 7 | B10: 程欣瑶 | C10: 0101 | D10: 70.8 | E10: =VLOOKUP(B:B,[1]登记表打印!$B:$F,5,0) -> 80.50 | F10: 75.65 | G10: *
A11: 8 | B11: 林朝岳 | C11: 0101 | D11: 68.3 | E11: =VLOOKUP(B:B,[1]登记表打印!$B:$F,5,0) -> 82.06 | F11: 75.18
A12: 9 | B12: 刘从辉 | C12: 0101 | D12: 76.7 | E12: =VLOOKUP(B:B,[1]登记表打印!$B:$F,5,0) -> 73.33 | F12: 75.02
A13: 10 | B13: 孙悦 | C13: 0101 | D13: 66 | E13: =VLOOKUP(B:B,[1]登记表打印!$B:$F,5,0) -> 82.39 | F13: 74.20
A14: 11 | B14: 张杰 | C14: 0101 | D14: 69 | E14: =VLOOKUP(B:B,[1]登记表打印!$B:$F,5,0) -> 76.03 | F14: 72.52
A15: 12 | B15: 牟晨鑫 | C15: 0101 | D15: 63.7 | E15: =VLOOKUP(B:B,[1]登记表打印!$B:$F,5,0) -> 81.32 | F15: 72.51
A16: 13 | B16: 武泽鹏 | C16: 0101 | D16: 58.3 | E16: =VLOOKUP(B:B,[1]登记表打印!$B:$F,5,0) -> 84.65 | F16: 71.48
A17: 14 | B17: 赵云 | C17: 0101 | D17: 64.6 | E17: =VLOOKUP(B:B,[1]登记表打印!$B:$F,5,0) -> 77.09 | F17: 70.85
A18: 15 | B18: 赵心欣 | C18: 0101 | D18: 58.4 | E18: =VLOOKUP(B:B,[1]登记表打印!$B:$F,5,0) -> 77.79 | F18: 68.10
A19: 16 | B19: 谢昊洋 | C19: 0101 | D19: 57.2 | E19: =VLOOKUP(B:B,[1]登记表打印!$B:$F,5,0) -> 78.29 | F19: 67.75
A20: 17 | B20: 王浈涵 | C20: 0101 | D20: 61.6 | E20: =VLOOKUP(B:B,[1]登记表打印!$B:$F,5,0) -> 73.33 | F20: 67.47
A21: 18 | B21: 孙一鸣 | C21: 0101 | D21: 70.2 | E21: =VLOOKUP(B:B,[1]登记表打印!$B:$F,5,0) -> 59.00 | F21: 64.60
A22: 19 | B22: 于琦 | C22: 0101 | D22: 68 | E22: =VLOOKUP(B:B,[1]登记表打印!$B:$F,5,0) -> 缺考 | F22: /
A23: 20 | B23: 化淑丹 | C23: 0102 | D23: 72.6 | E23: =VLOOKUP(B:B,[1]登记表打印!$B:$F,5,0) -> 83.49 | F23: 78.05 | G23: *
A24: 21 | B24: 胡志娟 | C24: 0102 | D24: 71.9 | E24: =VLOOKUP(B:B,[1]登记表打印!$B:$F,5,0) -> 83.32 | F24: 77.61 | G24: *
A25: 22 | B25: 杨子轩 | C25: 0102 | D25: 69.1 | E25: =VLOOKUP(B:B,[1]登记表打印!$B:$F,5,0) -> 85.21 | F25: 77.16 | G25: *
A26: 23 | B26: 杜明慧 | C26: 0102 | D26: 69.1 | E26: =VLOOKUP(B:B,[1]登记表打印!$B:$F,5,0) -> 81.22 | F26: 75.16 | G26: *
A27: 24 | B27: 张阳阳 | C27: 0102 | D27: 68.8 | E27: =VLOOKUP(B:B,[1]登记表打印!$B:$F,5,0) -> 81.37 | F27: 75.09
A28: 25 | B28: 王紫涵 | C28: 0102 | D28: 66.3 | E28: =VLOOKUP(B:B,[1]登记表打印!$B:$F,5,0) -> 80.57 | F28: 73.44
A29: 26 | B29: 云依凡 | C29: 0102 | D29: 64.6 | E29: =VLOOKUP(B:B,[1]登记表打印!$B:$F,5,0) -> 81.83 | F29: 73.22
A30: 27 | B30: 赵敏鑫 | C30: 0102 | D30: 64.2 | E30: =VLOOKUP(B:B,[1]登记表打印!$B:$F,5,0) -> 81.08 | F30: 72.64
A31: 28 | B31: 张万冉 | C31: 0102 | D31: 63.5 | E31: =VLOOKUP(B:B,[1]登记表打印!$B:$F,5,0) -> 79.80 | F31: 71.65
A32: 29 | B32: 魏金灿 | C32: 0102 | D32: 61.6 | E32: =VLOOKUP(B:B,[1]登记表打印!$B:$F,5,0) -> 73.57 | F32: 67.59
A33: 30 | B33: 刘畅 | C33: 0102 | D33: 64.1 | E33: =VLOOKUP(B:B,[1]登记表打印!$B:$F,5,0) -> 缺考 | F33: /
A34: 31 | B34: 车晨阳 | C34: 0102 | D34: 61.6 | E34: =VLOOKUP(B:B,[1]登记表打印!$B:$F,5,0) -> 缺考 | F34: /
A35: 32 | B35: 史梦雪 | C35: 0103 | D35: 77 | E35: =VLOOKUP(B:B,[1]登记表打印!$B:$F,5,0) -> 85.09 | F35: 81.05 | G35: *
A36: 33 | B36: 王睿鹏 | C36: 0103 | D36: 72.3 | E36: =VLOOKUP(B:B,[1]登记表打印!$B:$F,5,0) -> 80.36 | F36: 76.33 | G36: *
A37: 34 | B37: 张文欣 | C37: 0103 | D37: 68.2 | E37: =VLOOKUP(B:B,[1]登记表打印!$B:$F,5,0) -> 83.87 | F37: 76.04 | G37: *
A38: 35 | B38: 乔青青 | C38: 0103 | D38: 71.7 | E38: =VLOOKUP(B:B,[1]登记表打印!$B:$F,5,0) -> 80.21 | F38: 75.96 | G38: *
A39: 36 | B39: 王彦娟 | C39: 0103 | D39: 64.3 | E39: =VLOOKUP(B:B,[1]登记表打印!$B:$F,5,0) -> 85.15 | F39: 74.73 | G39: *
A40: 37 | B40: 秦鹏举 | C40: 0103 | D40: 68.1 | E40: =VLOOKUP(B:B,[1]登记表打印!$B:$F,5,0) -> 78.83 | F40: 73.47
A41: 38 | B41: 李欣如 | C41: 0103 | D41: 65.4 | E41: =VLOOKUP(B:B,[1]登记表打印!$B:$F,5,0) -> 80.27 | F41: 72.84
A42: 39 | B42: 李英鑫 | C42: 0103 | D42: 61.9 | E42: =VLOOKUP(B:B,[1]登记表打印!$B:$F,5,0) -> 78.05 | F42: 69.98
A43: 40 | B43: 曹启超 | C43: 0103 | D43: 64.7 | E43: =VLOOKUP(B:B,[1]登记表打印!$B:$F,5,0) -> 72.40 | F43: 68.55
A44: 41 | B44: 逯超峰 | C44: 0103 | D44: 52.2 | E44: =VLOOKUP(B:B,[1]登记表打印!$B:$F,5,0) -> 77.89 | F44: 65.05
A45: 42 | B45: 唐家兴 | C45: 0103 | D45: 55.2 | E45: =VLOOKUP(B:B,[1]登记表打印!$B:$F,5,0) -> 71.50 | F45: 63.35
A46: 43 | B46: 叶梅辰 | C46: 0103 | D46: 68.3 | E46: =VLOOKUP(B:B,[1]登记表打印!$B:$F,5,0) -> 缺考 | F46: /
A47: 44 | B47: 荆晓丽 | C47: 0103 | D47: 63.5 | E47: =VLOOKUP(B:B,[1]登记表打印!$B:$F,5,0) -> 缺考 | F47: /
